fUST/lending_fUST_20250529
["ID","MTS","AMOUNT","RATE_DAILY","PERIOD"]
[362777434,1748451047712,-2000.0,0.0001989,2]
[362777435,1748451047723,-372.35599283,0.0001989,2]
[362777436,1748451047734,-151.0,0.0001989,2]
[362777437,1748451047744,-186.0,0.000199,4]
[362777438,1748451047754,-186.0,0.000199,5]
[362777439,1748451047764,-186.0,0.000199,4]
[362777440,1748451047774,-187.98,0.000199,3]
[362777441,1748451047784,-107165.62000001,0.000199,3]
[362777442,1748451047795,-151.0,0.000199,2]
[362777443,1748451047804,-3217.60035619,0.00019934,2]
[362777444,1748451047814,-506.04841963,0.00019973,2]
[362777445,1748451047823,-170607.47787197,0.0002,2]
[362777446,1748451047832,-603.12,0.0002,2]
[362777447,1748451047842,-500.0,0.0002,5]
[362777448,1748451047851,-500.0,0.0002,3]
[362777449,1748451047862,-200000.0,0.0002,2]
[362777450,1748451047871,-430.0,0.0002,2]
[362777451,1748451047880,-1525.2,0.0002,2]
[362777452,1748451047890,-794.15,0.0002,2]
[362777453,1748451047900,-430.0,0.0002,2]
[362777454,1748451047913,-300.0,0.0002,2]
[362777455,1748451047923,-430.0,0.0002,2]
[362777456,1748451047932,-3600.03,0.0002,2]
[362777457,1748451047941,-1953.0,0.0002,2]
[362777458,1748451047952,-483.72,0.0002,2]
[362777459,1748451047961,-430.0,0.0002,2]
[362777460,1748451047971,-430.0,0.0002,2]
[362777461,1748451047980,-430.0,0.0002,2]
[362777462,1748451047991,-439.34461407,0.0002,2]
[362777463,1748451048000,-430.0,0.0002,2]
[362777464,1748451048009,-151.0,0.0002,2]
[362777465,1748451048018,-4000.0,0.0002,4]
[362777466,1748451048027,-430.0,0.0002,2]
[362777467,1748451048036,-1498.84,0.0002,2]
[362777468,1748451048045,-157.95,0.0002,2]
[362777469,1748451048054,-564.27,0.0002,2]
[362777470,1748451048064,-430.0,0.0002,2]
[362777471,1748451048074,-430.0,0.0002,2]
[362777472,1748451048083,-887.34,0.0002,2]
[362777473,1748451048092,-430.0,0.0002,2]
[362777474,1748451048101,-430.0,0.0002,2]
[362777475,1748451048112,-150.9783192,0.00020005,2]
[362777476,1748451048122,-223.0315306,0.00020006,2]
[362777477,1748451048132,-5000.0,0.00020008,2]
[362777478,1748451048142,-205.0,0.0002004,2]
[362777479,1748451048151,-1400.0,0.00020068,2]
[362777480,1748451048161,-167.0,0.00020171,2]
[362777481,1748451048171,-433.0,0.00020171,2]
[362777482,1748451048182,-3217.60035619,0.0002021,2]
[362777483,1748451048191,-205.0,0.0002026,2]
[362777484,1748451048200,-430.0,0.00020273,2]
[362777485,1748451048211,-1525.2,0.00020273,2]
[362777486,1748451048220,-794.15,0.00020273,2]
[362777487,1748451048230,-430.0,0.00020273,2]
[362777488,1748451048241,-369.42323803,0.00020273,2]
[362777489,1748451048250,-3600.03,0.00020273,2]
[362777490,1748451048260,-1953.0,0.00020273,2]
[362777491,1748451048270,-483.72,0.00020273,2]
[362777492,1748451048279,-430.0,0.00020273,2]
[362777493,1748451048288,-430.0,0.00020273,2]
[362777494,1748451048298,-430.0,0.00020273,2]
[362777495,1748451048308,-543.75825396,0.00020273,2]
[362777496,1748451048317,-321.56800187,0.00020273,2]
[362777497,1748451048418,-108.43199813,0.00020273,2]
[362777498,1748451048428,-430.63716481,0.00020273,2]
[362777499,1748451048440,-1068.20283519,0.00020273,2]
[362777500,1748451048449,-564.27,0.00020273,2]
[362777501,1748451048459,-430.0,0.00020273,2]
[362777502,1748451048468,-412.03438823,0.00020273,2]
[362777503,1748451048480,-17.96561177,0.00020273,2]
[362777504,1748451048489,-887.34,0.00020273,2]
[362777505,1748451048498,-430.0,0.00020273,2]
[362777506,1748451048507,-430.0,0.00020273,2]
[362777507,1748451048517,-250.56674857,0.00020276,2]
[362777508,1748451174468,3665.0,0.00024658,120]
[362777510,1748451213884,162.805056,0.00013699,2]
[362777511,1748451270726,200.0,0.00023975,120]
[362777512,1748451665178,2000.0,0.00018012,120]
[362777575,1748452238286,-161.0,0.00016438,3]
[362777577,1748452238296,-160.0,0.00016979,2]
[362777579,1748452238308,-151.0,0.000178,2]
[362777581,1748452238318,-151.0,0.00018046,2]
[362777583,1748452238327,-380.9880539,0.00018089,2]
[362777585,1748452238340,-2046.853071,0.00018089,2]
[362777587,1748452238349,-160.0,0.00018883,2]
[362777589,1748452238358,-842.5625,0.00018883,2]
[362777591,1748452238367,-885.79190059,0.00018925,2]
[362777594,1748452238384,-75.20809941,0.00018925,2]
[362777595,1748452238395,-357.13984393,0.00018925,2]
[362777598,1748452238407,-47.86015607,0.00018925,2]
[362777600,1748452238416,-207.4,0.00019166,2]
[362777601,1748452238426,-1200.0,0.00019175,2]
[362777603,1748452238436,-160.0,0.00019176,2]
[362777605,1748452238445,-229.229959,0.00019176,2]
[362777607,1748452238454,-160.0,0.00019176,2]
[362777609,1748452238463,-423.24161968,0.00019176,2]
[362777611,1748452238473,-49.05000271,0.00019178,2]
[362777791,1748452240284,-300.0,0.00019175,2]
[362777793,1748452240294,-579.65999729,0.00019178,2]
[362777807,1748452240397,-56.54753671,0.00019178,2]
[362777810,1748452240442,-373.45246329,0.00019178,2]
[362777812,1748452240451,-1207.45,0.00019178,2]
[362777814,1748452240461,-430.0,0.00019178,2]
[362777816,1748452240470,-1279.86753672,0.00019318,2]
[362777987,1748452246353,-3720.13246328,0.00019318,2]
[362777989,1748452246363,-433.35445343,0.00019327,2]
[362777990,1748452246372,-500.0,0.00019327,2]
[362777991,1748452246383,-190.58959897,0.00019327,2]
[362777992,1748452246392,-430.0,0.00019328,2]
[362777993,1748452246402,-702.47,0.00019328,2]
[362777994,1748452246412,-1000.48023051,0.00019328,2]
[362777995,1748452246420,-500.0,0.00019328,2]
[362777996,1748452246430,-431.24155191,0.00019328,2]
[362777997,1748452246439,-500.0,0.00019328,2]
[362777998,1748452246448,-433.20801291,0.00019328,2]
[362777999,1748452246457,-479.15196719,0.00019328,2]
[362778000,1748452246467,-500.0,0.00019328,2]
[362778001,1748452246476,-430.0,0.00019329,2]
[362778002,1748452246486,-430.0,0.00019329,2]
[362778003,1748452246496,-430.0,0.00019329,2]
[362778004,1748452246506,-1397.62,0.00019329,2]
[362778005,1748452246515,-446.71,0.00019329,2]
[362778006,1748452246525,-430.0,0.00019329,2]
[362778007,1748452246535,-430.0,0.00019329,2]
[362778008,1748452246545,-1546.13,0.00019329,2]
[362778009,1748452246555,-2464.05586908,0.00019329,2]
[362778011,1748452384640,162.805056,0.00013699,2]
[362778012,1748452591099,569100.0,0.000246,120]
[362778020,1748452663877,500.0,0.000246,120]
[362778021,1748452699419,500.0,0.0002465,120]
[362778022,1748452735559,500.0,0.00024653,120]
[362778023,1748452752522,500.0,0.00024655,120]
[362778024,1748452781714,500.0,0.00024656,120]
[362778025,1748452800475,500.0,0.00024657,120]
[362778026,1748452831257,500.0,0.00024657,120]
[362778027,1748452859780,500.0,0.00024657,120]
[362778028,1748452885479,600.0,0.00024658,120]
[362778029,1748452927814,600.0,0.00024657,120]
[362778031,1748452957455,500.0,0.00024658,120]
[362778032,1748452969894,500.0,0.00024658,120]
[362778033,1748452993748,535.0,0.00024658,120]
[362778034,1748452999390,1086.5088734,0.00017915,120]
[362778035,1748453041703,270.0,0.00024657,120]
[362778042,1748453325688,162.199999,0.0002,30]
[362778043,1748453325778,332.55984873,0.0002191,120]
[362778060,1748453432279,-160.0,0.00016438,3]
[362778061,1748453432289,-248.62024876,0.00017915,2]
[362778065,1748453432440,-3821.78966634,0.00017915,2]
[362778067,1748453432449,-300.0,0.00018262,2]
[362778069,1748453432458,-1200.0,0.00018262,2]
[362778071,1748453432468,-7461.0713879,0.00018263,2]
[362778072,1748453432477,-150.9783192,0.00018841,2]
[362778073,1748453432486,-376.44802923,0.00018898,2]
[362778075,1748453432496,-500.0,0.00018898,2]
[362778077,1748453432505,-500.0,0.00018898,2]
[362778079,1748453432514,-185.40637704,0.00018898,2]
[362778080,1748453432524,-500.0,0.00018898,2]
[362778082,1748453432533,-616.87958269,0.00018898,2]
[362778083,1748453432543,-500.0,0.00018898,2]
[362778084,1748453432552,-500.0,0.00018898,2]
[362778086,1748453432561,-500.0,0.00018898,2]
[362778088,1748453432570,-244.1286704,0.00018898,2]
[362778090,1748453432580,-275.99692549,0.00018898,2]
[362778091,1748453432589,-500.0,0.00018898,2]
[362778094,1748453432599,-7292.7686254,0.00018899,2]
[362778113,1748453435781,162.694082,0.00013699,2]
[362778148,1748453438322,-5826.49337453,0.00018899,2]
[362778359,1748453440509,-300.0,0.00018898,2]
[362778360,1748453440519,-34488.78910469,0.00018899,2]
[362778361,1748453440528,-160.0,0.000189,2]
[362778362,1748453440537,-423.24161968,0.000189,2]
[362778363,1748453440546,-160.0,0.000189,2]
[362778364,1748453440556,-229.229959,0.000189,2]
[362778365,1748453440565,-405.0,0.00018941,2]
[362778367,1748453440574,-423.716,0.00018941,2]
[362778369,1748453440583,-178910.02331663,0.00019,2]
[362778895,1748453446586,-504.4836422,0.000188,2]
[362778897,1748453446596,-1300.0,0.00018868,2]
[362778899,1748453446606,-842.5625,0.000189,2]
[362778901,1748453446615,-160.0,0.000189,2]
[362778903,1748453446624,-34741.35994794,0.00019,2]
[362782616,1748453657406,270.50337258,0.00024657,120]
[362782628,1748454632733,-157.0,0.00016438,3]
[362782630,1748454632742,-207.4,0.00018194,2]
[362782632,1748454632752,-300.0,0.00018204,2]
[362782634,1748454632761,-300.0,0.00018204,2]
[362782636,1748454632770,-1200.0,0.00018204,2]
[362782638,1748454632780,-24900.0,0.00018205,2]
[362782640,1748454632790,-232.959738,0.00018289,2]
[362782642,1748454632799,-1300.0,0.00018868,2]
[362782644,1748454632808,-961.0,0.00018896,2]
[362782646,1748454632818,-2204.0,0.00018896,2]
[362782648,1748454632827,-707.0,0.00018896,2]
[362782650,1748454632837,-160.0,0.000189,2]
[362782652,1748454632847,-347900.51981207,0.00019,2]
[362782654,1748454632856,-152.0,0.00019147,2]
[362782656,1748454632865,-229.229959,0.00019176,2]
[362782658,1748454632875,-476.78352995,0.00019177,2]
[362782660,1748454632884,-430.0,0.00019178,2]
[362782662,1748454632893,-251.91488136,0.00019178,2]
[362782664,1748454632903,-453.33737433,0.00019178,2]
[362782666,1748454632912,-430.0,0.00019178,2]
[362782668,1748454632922,-430.0,0.00019178,2]
[362782670,1748454632933,-430.0,0.00019178,2]
[362782671,1748454632942,-430.0,0.00019178,2]
[362782672,1748454632951,-1175.06,0.00019178,2]
[362782673,1748454632961,-430.0,0.00019178,2]
[362782674,1748454632970,-602.51,0.00019178,2]
[362782675,1748454632981,-185.65269042,0.00019178,2]
[362782676,1748454632991,-430.0,0.00019178,2]
[362782677,1748454633000,-430.0,0.00019178,2]
[362782678,1748454633009,-384.22252767,0.00019178,2]
[362782679,1748454633019,-430.0,0.00019178,2]
[362782680,1748454633028,-430.0,0.00019178,2]
[362782681,1748454633037,-430.0,0.00019178,2]
[362782682,1748454633047,-1481.71,0.00019178,2]
[362782683,1748454633056,-430.0,0.00019178,2]
[362782684,1748454633065,-430.0,0.00019178,2]
[362782685,1748454633075,-2747.36,0.00019178,2]
[362782686,1748454633084,-430.0,0.00019178,2]
[362782687,1748454633094,-430.0,0.00019178,2]
[362782688,1748454633104,-430.0,0.00019178,2]
[362782689,1748454633114,-183.41401941,0.00019178,2]
[362782690,1748454633123,-430.0,0.00019178,2]
[362782691,1748454633134,-430.0,0.00019178,2]
[362782692,1748454633146,-430.0,0.00019178,2]
[362782693,1748454633155,-1637.28,0.00019178,2]
[362782694,1748454633164,-430.0,0.00019178,2]
[362782695,1748454633175,-430.0,0.00019178,2]
[362782696,1748454633184,-673.2,0.00019178,2]
[362782697,1748454633194,-500.0,0.00019317,2]
[362782698,1748454633203,-500.0,0.00019317,2]
[362782699,1748454633214,-231.81570789,0.00019317,2]
[362782700,1748454633223,-413.62568959,0.00019317,2]
[362782701,1748454633233,-329.78446392,0.00019317,2]
[362782702,1748454633244,-500.0,0.00019317,2]
[362782703,1748454633253,-5000.0,0.00019318,2]
[362782704,1748454633263,-151.0,0.00019328,2]
[362782705,1748454633272,-160.0,0.00019329,2]
[362782706,1748454633282,-35521.90891974,0.00019329,2]
[362782727,1748454638478,-423.24161968,0.000189,2]
[362782729,1748454638487,-530.10259131,0.00019329,2]
[362782766,1748454643830,-300.0,0.00019328,2]
[362782767,1748454643839,-1234.63129603,0.00019329,2]
[362782768,1748454643886,-31000.23546943,0.00019329,2]
[362782769,1748454643896,-186.21007292,0.00019352,2]
[362782770,1748454643905,-151.0,0.00019355,2]
[362782771,1748454643914,-246.43046613,0.00019383,2]
[362782772,1748454643924,-430.0,0.00019452,2]
[362782773,1748454643933,-430.0,0.00019452,2]
[362782774,1748454643943,-1175.06,0.00019452,2]
[362782775,1748454643952,-602.51,0.00019452,2]
[362782776,1748454643962,-430.0,0.00019452,2]
[362782777,1748454643971,-430.0,0.00019452,2]
[362782778,1748454643981,-430.0,0.00019452,2]
[362782779,1748454643990,-1481.71,0.00019452,2]
[362782780,1748454643999,-430.0,0.00019452,2]
[362782781,1748454644009,-430.0,0.00019452,2]
[362782782,1748454644017,-2747.36,0.00019452,2]
[362782783,1748454644026,-430.0,0.00019452,2]
[362782784,1748454644035,-430.0,0.00019452,2]
[362782785,1748454644045,-430.0,0.00019452,2]
[362782786,1748454644054,-430.0,0.00019452,2]
[362782788,1748454644063,-430.0,0.00019452,2]
[362782789,1748454644072,-1637.28,0.00019452,2]
[362782790,1748454644082,-430.0,0.00019452,2]
[362782791,1748454644091,-518.35070053,0.00019452,2]
[362782817,1748454646701,-430.0,0.00019178,2]
[362782819,1748454646711,-1448.14,0.00019178,2]
[362782821,1748454646720,-154.84929947,0.00019452,2]
[362782823,1748454646730,-430.0,0.00019452,2]
[362782825,1748454646739,-1275.95671268,0.00019452,2]
[362782827,1748454646754,-172.18328732,0.00019452,2]
[362782829,1748454646762,-186.2100729,0.00019489,2]
[362782831,1748454646771,-215.0738,0.00019563,2]
[362782833,1748454646779,-2715.5,0.00019599,2]
[362782835,1748454646788,-2715.5,0.00019599,2]
[362782837,1748454646798,-1473.42486364,0.00019599,2]
[362782875,1748454658801,162.589635,0.00013699,2]
[362782876,1748454672128,1149.88400184,0.00021917,30]
[362782878,1748455191344,938.168,0.00021917,30]
[362782883,1748455586425,2500.0,0.00021917,30]
[362782884,1748455783682,2500.0,0.00021917,30]
[362782885,1748455794306,2500.0,0.00021917,30]
[362782886,1748455806376,2500.0,0.00021917,30]
[362782890,1748455821193,162.589635,0.00013699,2]
[362782944,1748455831892,-232.959739,0.00018164,2]
[362782946,1748455831901,-300.0,0.00018189,2]
[362782948,1748455831911,-300.0,0.00018189,2]
[362782950,1748455831920,-300.0,0.00018189,2]
[362782952,1748455831929,-300.0,0.00018189,2]
[362782954,1748455831941,-1200.0,0.00018189,2]
[362782956,1748455831951,-9770.0088971,0.0001819,2]
[362782958,1748455831961,-160.0,0.00018863,2]
[362782960,1748455831971,-229.229959,0.00018863,2]
[362782963,1748455831980,-160.0,0.00018863,2]
[362782966,1748455831989,-423.24161968,0.00018863,2]
[362782968,1748455831999,-1510.05874413,0.00018863,2]
[362782970,1748455832009,-364.45530828,0.00018868,2]
[362782972,1748455832018,-160.0,0.00018868,2]
[362782973,1748455832027,-1200.0,0.00018868,2]
[362782975,1748455832036,-212.66609673,0.00018955,2]
[362782977,1748455832046,-405.0,0.00018956,2]
[362782979,1748455832055,-207.4,0.00019165,2]
[362782981,1748455832065,-552.3,0.00019178,2]
[362782983,1748455832074,-430.0,0.00019178,2]
[362782985,1748455832084,-430.0,0.00019178,2]
[362782986,1748455832093,-822.25948143,0.00019178,2]
[362783038,1748455837755,-202.319471,0.00019207,2]
[362783040,1748455837764,-531.84308389,0.00019328,2]
[362783042,1748455837774,-2924.4915304,0.00019329,2]
[362783044,1748455837783,-150.9783192,0.00019351,2]
[362783046,1748455837792,-430.0,0.0001945,2]
[362783048,1748455837801,-430.0,0.0001945,2]
[362783050,1748455837811,-1358.23,0.0001945,2]
[362783052,1748455837820,-430.0,0.0001945,2]
[362783054,1748455837829,-430.0,0.0001945,2]
[362783056,1748455837838,-430.0,0.0001945,2]
[362783058,1748455837846,-520.32,0.0001945,2]
[362783059,1748455837855,-430.0,0.0001945,2]
[362783063,1748455837865,-1500.84,0.0001945,2]
[362783065,1748455837875,-654.08,0.0001945,2]
[362783067,1748455837884,-430.0,0.0001945,2]
[362783069,1748455837894,-430.0,0.00019451,2]
[362783071,1748455837903,-430.0,0.00019451,2]
[362783073,1748455837912,-430.0,0.00019451,2]
[362783075,1748455837921,-2518.41,0.00019451,2]
[362783076,1748455837930,-430.0,0.00019451,2]
[362783077,1748455837939,-1293.2,0.00019451,2]
[362783078,1748455837948,-552.3,0.00019452,2]
[362783079,1748455837958,-430.0,0.00019452,2]
[362783080,1748455837967,-430.0,0.00019452,2]
[362783081,1748455837976,-5000.0,0.00019587,2]
[362783082,1748455837985,-500.0,0.00019599,2]
[362783083,1748455837994,-1242.07513636,0.00019599,2]
[362783084,1748455838004,-2715.5,0.00019599,2]
[362783085,1748455838013,-2715.5,0.00019599,2]
[362783086,1748455838021,-2715.5,0.00019599,2]
[362783087,1748455838030,-2715.4,0.00019599,2]
[362783088,1748455838039,-1057.0,0.00019599,2]
[362783089,1748455838047,-289.53798271,0.00019723,2]
[362783090,1748455838056,-580.84912475,0.00019723,2]
[362783091,1748455838064,-500.0,0.00019723,2]
[362783092,1748455838073,-362.27099552,0.00019723,2]
[362783093,1748455838081,-430.0,0.00019724,2]
[362783094,1748455838090,-430.0,0.00019724,2]
[362783095,1748455838099,-1358.23,0.00019724,2]
[362783096,1748455838107,-430.0,0.00019724,2]
[362783097,1748455838116,-430.0,0.00019724,2]
[362783098,1748455838126,-430.0,0.00019724,2]
[362783099,1748455838133,-430.0,0.00019724,2]
[362783100,1748455838142,-1500.84,0.00019724,2]
[362783101,1748455838150,-654.08,0.00019724,2]
[362783102,1748455838159,-430.0,0.00019724,2]
[362783103,1748455838169,-430.0,0.00019725,2]
[362783104,1748455838177,-430.0,0.00019725,2]
[362783105,1748455838183,-430.0,0.00019725,2]
[362783106,1748455838192,-2518.41,0.00019725,2]
[362783107,1748455838199,-430.0,0.00019725,2]
[362783108,1748455838207,-1293.2,0.00019725,2]
[362783109,1748455838213,-552.3,0.00019726,2]
[362783110,1748455838220,-430.0,0.00019726,2]
[362783111,1748455838229,-310.261,0.00019726,2]
[362783112,1748455838239,-430.0,0.00019726,2]
[362783113,1748455838248,-172.918,0.00019728,2]
[362783114,1748455838257,-1091.55586084,0.00019817,2]
[362783115,1748455838265,-420.0,0.00019843,2]
[362783116,1748455838275,-331.29907007,0.00019899,2]
[362783117,1748455838284,-331.29907005,0.00019899,2]
[362783118,1748455838293,-331.29907005,0.000199,2]
[362783119,1748455838302,-331.29907005,0.000199,2]
[362783120,1748455838311,-2981.0537513,0.000199,2]
[362783121,1748455838322,-331.29907005,0.000199,2]
[362783122,1748455838333,-1680.0,0.0001994,2]
[362783123,1748455838344,-1200.0,0.00019964,2]
[362783124,1748455838355,-500.0,0.00019973,2]
[362783125,1748455838488,-231.12931022,0.00019973,2]
[362783126,1748455838527,-506.94147846,0.00019973,2]
[362783127,1748455838537,-500.0,0.00019973,2]
[362783128,1748455838548,-501.3893892,0.00019973,2]
[362783129,1748455838558,-430.0,0.00019998,2]
[362783130,1748455838568,-430.0,0.00019998,2]
[362783131,1748455838579,-1358.23,0.00019998,2]
[362783132,1748455838588,-430.0,0.00019998,2]
[362783133,1748455838598,-430.0,0.00019998,2]
[362783134,1748455838607,-430.0,0.00019998,2]
[362783135,1748455838617,-430.0,0.00019998,2]
[362783136,1748455838628,-1500.84,0.00019998,2]
[362783137,1748455838637,-654.08,0.00019998,2]
[362783138,1748455838647,-430.0,0.00019998,2]
[362783139,1748455838656,-155.0,0.00019999,2]
[362783140,1748455838666,-430.0,0.00019999,2]
[362783141,1748455838675,-480.0,0.00019999,2]
[362783142,1748455838685,-430.0,0.00019999,2]
[362783143,1748455838695,-2518.41,0.00019999,2]
[362783144,1748455838704,-430.0,0.00019999,2]
[362783145,1748455838714,-1293.2,0.00019999,2]
[362783146,1748455838723,-29873.60673439,0.0002,2]
[362783147,1748455838732,-9111.15994837,0.0002,3]
[362783148,1748455838742,-19115.79051258,0.0002,15]
[362783168,1748455839853,-3617.64069482,0.0002,15]
[362783169,1748455839905,-7452.42353899,0.0002,15]
[362783170,1748455839914,-9065.25740227,0.0002,2]
[362783187,1748455842846,-223038.31740473,0.0002,2]
[362783188,1748455842858,-247626.21173067,0.0002,2]
[362783189,1748455842867,-250.7,0.0002,2]
[362783190,1748455842876,-5015.92051799,0.0002,2]
[362783192,1748455842885,-552.3,0.0002,2]
[362783194,1748455842894,-430.0,0.0002,2]
[362783196,1748455842903,-151.0,0.0002,2]
[362783198,1748455842912,-430.0,0.0002,2]
[362783200,1748455842921,-363.19242247,0.0002,2]
[362783202,1748455842930,-157.92,0.0002,2]
[362783204,1748455842940,-151.0,0.0002,2]
[362783206,1748455842950,-4000.0,0.0002,4]
[362783208,1748455842959,-2981.0537511,0.00020072,2]
[362783210,1748455842969,-5000.0,0.00020135,2]
[362783212,1748455842978,-1183.89,0.00020148,2]
[362783214,1748455842987,-2802.0,0.000202,2]
[362783215,1748455842997,-2802.0,0.000202,2]
[362783216,1748455843007,-2802.0,0.000202,2]
[362783217,1748455843017,-2802.0,0.000202,2]
[362783218,1748455843026,-2802.0,0.000202,2]
[362783219,1748455843035,-2802.0,0.000202,2]
[362783221,1748455843045,-2802.0,0.000202,2]
[362783222,1748455843055,-2802.0,0.000202,2]
[362783223,1748455843064,-2802.0,0.000202,2]
[362783224,1748455843073,-2802.0,0.000202,2]
[362783225,1748455843083,-151.0,0.000202,2]
[362783226,1748455843092,-151.0,0.000202,2]
[362783227,1748455843102,-151.0,0.000202,2]
[362783228,1748455843111,-1000.0,0.0002021,7]
[362783229,1748455843120,-1000.0,0.00020217,2]
[362783230,1748455843130,-2981.0537511,0.00020245,2]
[362783231,1748455843139,-430.0,0.00020272,2]
[362783232,1748455843148,-430.0,0.00020272,2]
[362783233,1748455843157,-1358.23,0.00020272,2]
[362783234,1748455843167,-430.0,0.00020272,2]
[362783235,1748455843177,-443.13621048,0.00020272,2]
[362783236,1748455843187,-430.0,0.00020272,2]
[362783237,1748455843196,-430.0,0.00020272,2]
[362783238,1748455843206,-654.08,0.00020272,2]
[362783239,1748455843215,-430.0,0.00020272,2]
[362783240,1748455843224,-552.3,0.00020273,2]
[362783241,1748455843234,-430.0,0.00020273,2]
[362783242,1748455843243,-430.0,0.00020273,2]
[362783243,1748455843252,-430.0,0.00020273,2]
[362783244,1748455843261,-430.0,0.00020273,2]
[362783245,1748455843270,-2518.41,0.00020273,2]
[362783246,1748455843279,-430.0,0.00020273,2]
[362783247,1748455843288,-1293.2,0.00020273,2]
[362783248,1748455843297,-2981.0537511,0.00020417,3]
[362783249,1748455843307,-2000.0,0.00020466,2]
[362783250,1748455843316,-205.0,0.0002048,2]
[362783251,1748455843325,-1000.0,0.00020521,2]
[362783252,1748455843334,-215.0738,0.00020534,2]
[362783253,1748455843344,-430.0,0.00020546,2]
[362783254,1748455843354,-430.0,0.00020546,2]
[362783255,1748455843364,-1358.23,0.00020546,2]
[362783256,1748455843373,-430.0,0.00020546,2]
[362783257,1748455843383,-430.0,0.00020546,2]
[362783258,1748455843392,-430.0,0.00020546,2]
[362783259,1748455843402,-654.08,0.00020546,2]
[362783260,1748455843412,-430.0,0.00020546,2]
[362783261,1748455843422,-552.3,0.00020547,2]
[362783262,1748455843432,-430.0,0.00020547,2]
[362783263,1748455843441,-430.0,0.00020547,2]
[362783264,1748455843451,-430.0,0.00020547,2]
[362783265,1748455843460,-430.0,0.00020547,2]
[362783266,1748455843470,-2518.41,0.00020547,2]
[362783267,1748455843480,-430.0,0.00020547,2]
[362783268,1748455843489,-1293.2,0.00020547,2]
[362783269,1748455843499,-2981.0537511,0.0002059,3]
[362783270,1748455843509,-151.0,0.0002059,2]
[362783271,1748455843518,-7123.06174023,0.0002061,2]
[362783272,1748455843529,-1000.0,0.00020662,7]
[362783273,1748455843541,-1000.0,0.00020662,7]
[362783274,1748455843552,-1000.0,0.00020672,2]
[362783275,1748455843562,-5000.0,0.00020683,2]
[362783276,1748455843572,-205.0,0.0002069,2]
[362783277,1748455843581,-2981.0537511,0.00020762,3]
[362783278,1748455843591,-2000.0,0.00020794,2]
[362783279,1748455843601,-401.21561177,0.0002082,2]
[362783280,1748455843610,-430.0,0.0002082,2]
[362783281,1748455843620,-1358.23,0.0002082,2]
[362783282,1748455843630,-430.0,0.0002082,2]
[362783283,1748455843640,-430.0,0.0002082,2]
[362783284,1748455843649,-430.0,0.0002082,2]
[362783285,1748455843659,-654.08,0.0002082,2]
[362783286,1748455843669,-430.0,0.0002082,2]
[362783287,1748455843679,-552.3,0.00020821,2]
[362783288,1748455843689,-430.0,0.00020821,2]
[362783289,1748455843699,-430.0,0.00020821,2]
[362783290,1748455843709,-430.0,0.00020821,2]
[362783291,1748455843719,-430.0,0.00020821,2]
[362783292,1748455843730,-2518.41,0.00020821,2]
[362783293,1748455843739,-430.0,0.00020821,2]
[362783294,1748455843749,-1293.2,0.00020821,2]
[362783295,1748455843759,-500.0,0.000209,7]
[362783296,1748455843768,-500.0,0.000209,7]